[Event "2nd Bundesliga Nord 2024-25"]
[Site "Germany"]
[Date "2024.12.01"]
[Round "3.14"]
[White "Garner, Isaac"]
[Black "Gallasch, Jonas"]
[Result "1-0"]
[Annotator "TA"]
[ECO "E92"]
[WhiteElo "2331"]
[BlackElo "2301"]
[PlyCount "95"]
[EventDate "2024.11.29"]
[EventType "team-tourn"]
[EventCountry "GER"]
[SourceTitle "playchess.com"]
[Source "ChessBase"]
[SourceQuality "1"]
[TimeControl "40/5400+30:1800+30"]

{[%evp 12,95,29,33,58,51,73,56,66,74,75,67,105,115,127,105,133,127,138,47,91,35,36,37,36,37,48,43,51,39,45,17,14,0,0,-24,-28,-30,0,2,25,10,21,0,0,0,0,0,0,11,62,61,53,58,107,121,256,261,266,285,265,251,247,168,399,350,395,368,470,462,425,446,470,463,483,478,491,448,490,507,540,497,1526,1414,1435,1171]} 1. d4 {[%emt 0:00:08]} Nf6 {[%emt 0:00:06]} 2. c4 {[%emt 0:00:16]} g6 {[%emt 0:00:07]} 3. Nc3 {[%emt 0:00:08]} Bg7 {[%emt 0:01:03]} 4. e4 {[%emt 0:00:23]} d6 {[%emt 0:00:04]} 5. Nf3 {[%emt 0:00:20]} O-O {[%emt 0:00:08]} 6. Be2 {[%emt 0:00:06]} e5 {[%emt 0:00:28]} 7. d5 {[%emt 0:00:22]} Bg4 {[%emt 0:02:31]} 8. Bg5 {[%emt 0:12:30]} Nbd7 {[%emt 0:02:22]} 9. Qc2 {[%emt 0:06:38]} Qe8 {[%emt 0:02:46]} 10. h3 {[%emt 0:07:28]} Bxf3 {[%emt 0:00:17]} 11. Bxf3 {[%emt 0:00:06]} a5 {[%emt 0:03:38][%cal Ba7a5,Ba5a4][%mdl 32]} 12. g4 {[%emt 0:14:13]} Nc5 {[%emt 0:05:37]} 13. O-O-O {[%emt 0:03:04]} a4 {[%emt 0:05:48]} 14. Be3 {[%emt 0:01:40]} Nfd7 {[%emt 0:01:56]} 15. g5 {[%emt 0:06:04]} (15. Kb1 $16) 15... f5 {[%emt 0:11:34]} 16. gxf6 {[%emt 0:04:47]} ({Better is} 16. Kb1 $16) 16... Rxf6 $14 {[%emt 0:00:11]} 17. Be2 {[%emt 0:04:35]} Qf8 {[%emt 0:06:19]} 18. Qd2 {[%emt 0:00:17]} h5 {[%emt 0:00:30]} 19. f3 {[%emt 0:04:49]} Kh7 {[%emt 0:01:52]} 20. Kc2 {[%emt 0:04:24]} Bh6 {[%emt 0:01:16]} 21. Bxh6 {[%emt 0:01:02]} Qxh6 {[%emt 0:00:07]} 22. Qxh6+ {[%emt 0:00:03]} Kxh6 {[%emt 0:00:06]} 23. b4 {[%emt 0:00:33]} axb3+ {[%emt 0:00:12]} 24. axb3 {[%emt 0:00:05]} Ra3 {[%emt 0:21:01]} 25. Rb1 {[%emt 0:06:09]} Rf8 {[%emt 0:10:12]} 26. Rb2 {[%emt 0:03:39]} (26. b4 Na4 27. Nxa4 Rxa4 $11) 26... Raa8 {[%emt 0:03:35][%cal Ba3a8,Ba8b8,Bb8f8][%mdl 32]} 27. Nb5 {[%emt 0:01:10]} Na6 {[%emt 0:01:33]} 28. b4 {[%emt 0:01:43]} Rf6 {[%emt 0:04:10]} 29. Kd2 {[%emt 0:08:06]} Rb8 {[%emt 0:05:21]} 30. Ra1 {[%emt 0:01:53][%cal Bh1a1,Ba1a5,Ba5a8][%mdl 32]} Kg5 {[%emt 0:00:43]} (30... Rf4 $11) 31. Ke3 {[%emt 0:01:25]} Kh4 {[%emt 0:00:56]} 32. Nc3 {[%emt 0:02:04]} Nf8 {[%emt 0:00:45]} (32... Rbf8 $14) 33. Ra5 $1 $16 {[%emt 0:02:21]} Nh7 {[%emt 0:05:55]} (33... Kxh3 34. Ra1 Kh4 35. Rg1 $18) (33... Nd7 $16 {was necessary.}) 34. c5 $18 {[%emt 0:00:11][%cal Bc4c5,Bc5c6,Bc6b7][%mdl 32]} Rbf8 {[%emt 0:00:03] Black is weak on the light squares} 35. c6 {[%emt 0:01:43]} Ng5 {[%emt 0:00:26][%cal Bh7g5,Bg5h3,Bh3f4,Bf4g2][%mdl 32]} 36. cxb7 {[%emt 0:00:09]} Nb8 {[%emt 0:00:09]} 37. Ra8 {[%emt 0:00:31]} Kg3 $2 {[%emt 0:00:55]} (37... Nxf3 38. Nb5 Ng1) 38. Rb1 {[%emt 0:01:33]} (38. Nb5 Nxh3 39. Nxc7 R6f7 $18) 38... Nxh3 {[%emt 0:01:37]} 39. Nb5 {[%emt 0:00:43] Active counter play!} Nf4 {[%emt 0:01:13]} 40. Rg1+ {[%emt 0:01:10]} (40. Nxc7 h4 41. Ne6 h3 42. Nxf8 Rxf8 $18) 40... Ng2+ {[%emt 0:00:02]} 41. Kd2 $1 {[%emt 0:31:57]} h4 {[%emt 0:03:45][%cal Bh5h4,Bh4h3,Bh3h2][%mdl 32]} 42. Na7 $1 {[%emt 0:00:00] Threatens to win with Nc8.} (42. Nxc7 h3 43. Ra3 Rf4 $16) 42... h3 {[%emt 0:02:15] [#]} 43. Nc8 $1 {[%emt 0:00:00]} h2 {[%emt 0:10:12]} 44. Rh1 {[%emt 0:00:00]} Nd7 {[%emt 0:00:29]} 45. Bb5 {[%emt 0:00:00]} (45. b8=B $2 Rxc8 46. Ra3 Nf4 $19 (46... Rxb8 $2 47. f4+ Kxf4 48. Rxh2 $19)) 45... Rxf3 {[%emt 0:00:27] ...Rf2+ is the strong threat.} 46. Bxd7 {[%emt 0:00:00]} Re3 {[%emt 0:00:22] [#]} (46... Rb3 $142 47. Bf5 (47. b8=B {is a self mate.} Rf2+ 48. Kc1 Ne3) 47... Rxb4) 47. Bf5 $1 {[%emt 0:00:00][%mdl 512]} gxf5 {[%emt 0:03:08]} (47... Rf7 48. b8=Q) 48. Ne7 {[%emt 0:00:00]} (48. b8=R $2 {loses.} fxe4 (48... Rxe4 49. Nxd6 Rd4+ 50. Kc1 $16) 49. Ne7 Rf2+ 50. Kc1 Re1+ 51. Rxe1 Nxe1 $19) 1-0

[Event "2nd Bundesliga Nord 2024-25"]
[Site "Germany"]
[Date "2024.12.01"]
[Round "3.15"]
[White "Pauly, Carlo"]
[Black "Bracker, Frank"]
[Result "0-1"]
[Annotator "RC"]
[ECO "D37"]
[WhiteElo "2319"]
[BlackElo "2297"]
[PlyCount "98"]
[EventDate "2024.11.29"]
[EventType "team-tourn"]
[EventCountry "GER"]
[SourceTitle "playchess.com"]
[Source "ChessBase"]
[SourceQuality "1"]
[TimeControl "40/5400+30:1800+30"]

1. Nf3 {[%emt 0:00:05]} Nf6 {[%emt 0:03:17]} 2. c4 {[%emt 0:00:41]} e6 {[%emt 0:00:41]} 3. Nc3 {[%emt 0:00:09]} d5 {[%emt 0:00:33]} 4. d4 {[%emt 0:00:08]} Nbd7 {[%emt 0:00:37]} 5. Bf4 {[%emt 0:00:10]} dxc4 {[%emt 0:00:27]} 6. e3 {[%emt 0:00:09]} b5 {[%emt 0:00:25]} 7. Nxb5 {[%emt 0:00:27]} Bb4+ {[%emt 0:00:20]} 8. Nc3 {[%emt 0:00:11]} Nd5 {[%emt 0:00:29]} 9. a3 {[%emt 0:00:32]} Nxc3 {[%emt 0:00:32]} 10. Qd2 {[%emt 0:00:49]} Bxa3 {[%emt 0:00:18]} 11. bxa3 {[%emt 0:11:54]} Nd5 {[%emt 0:05:38]} 12. Bg5 {[%emt 0:08:28]} f6 {[%emt 0:02:00]} 13. Bh4 {[%emt 0:01:33]} N7b6 {[%emt 0:10:28]} 14. e4 {[%emt 0:08:05]} Ne7 {[%emt 0:01:26]} 15. Be2 {[%emt 0:12:31]} Bb7 {[%emt 0:07:47]} 16. Qe3 {[%emt 0:09:27]} O-O {[%emt 0:06:46]} 17. O-O {[%emt 0:00:32]} Qd7 {[%emt 0:04:20]} 18. Rfc1 {[%emt 0:07:16]} Qc6 {[%emt 0:07:12]} 19. Nd2 {[%emt 0:02:46]} Nf5 {[%emt 0:06:31]} 20. d5 {[%emt 0:03:17]} Nxd5 {[%emt 0:00:50]} 21. exd5 {[%emt 0:01:58]} Qxd5 {[%emt 0:01:03]} 22. Qh3 {[%emt 0:02:41]} Qxd2 {[%emt 0:10:29]} 23. Bxc4 {[%emt 0:02:41]} Bd5 {[%emt 0:04:22]} 24. Rd1 {[%emt 0:03:39]} Qf4 {[%emt 0:01:00]} 25. Bxd5 {[%emt 0:05:07]} exd5 {[%emt 0:00:11]} 26. Bg3 {[%emt 0:01:09]} Nxg3 {[%emt 0:01:56]} 27. Qe6+ {[%emt 0:00:15]} Rf7 {[%emt 0:00:45]} 28. hxg3 {[%emt 0:00:10]} Qd6 {[%emt 0:01:00]} 29. Qxd5 {[%emt 0:02:10]} Qxd5 {[%emt 0:00:12]} 30. Rxd5 {[%emt 0:00:04]} c6 {[%emt 0:02:02]} 31. Ra5 {[%emt 0:05:30]} Rc7 {[%emt 0:09:04]} 32. Kf1 {[%emt 0:03:11]} c5 {[%emt 0:07:23]} 33. Rc1 {[%emt 0:01:21]} c4 {[%emt 0:00:47]} 34. Ra4 {[%emt 0:01:05]} c3 {[%emt 0:00:39]} 35. Ke2 {[%emt 0:01:24]} Rd8 {[%emt 0:02:09]} 36. Ke3 {[%emt 0:01:40]} c2 {[%emt 0:03:28]} 37. Rd4 {[%emt 0:00:48]} Re7+ {[%emt 0:00:20]} 38. Re4 {[%emt 0:00:54]} Rd1 {[%emt 0:01:02]} 39. Rxe7 {[%emt 0:01:10]} Rxc1 {[%emt 0:00:08]} 40. Rc7 {[%emt 0:02:12]} Re1+ {[%emt 0:00:40]} 41. Kd2 {[%emt 0:30:26]} Rf1 {[%emt 0:30:36]} 42. Kxc2 {[%emt 0:00:00]} Rxf2+ {[%emt 0:00:00]} 43. Kb3 {[%emt 0:00:00]} Rxg2 {[%emt 0:00:00]} 44. Rc3 {[%emt 0:00:00]} Re2 {[%emt 0:00:00]} 45. Kc4 {[%emt 0:00:00]} Re5 {[%emt 0:00:00]} 46. Rd3 {[%emt 0:00:00]} h5 {[%emt 0:00:00]} 47. a4 {[%emt 0:00:00]} a5 {[%emt 0:00:00]} 48. Rd7 {[%emt 0:00:00]} Rg5 {[%emt 0:00:00]} 49. Ra7 {[%emt 0:00:00]} Kh7 {[%emt 0:00:00]} 0-1

[Event "2nd Bundesliga Nord 2024-25"]
[Site "Germany"]
[Date "2024.12.01"]
[Round "3.16"]
[White "Weihrauch, Jakob"]
[Black "Marcziter, Dmitrii"]
[Result "1-0"]
[Annotator "RC"]
[ECO "B41"]
[WhiteElo "2246"]
[BlackElo "2187"]
[PlyCount "77"]
[EventDate "2024.11.29"]
[EventType "team-tourn"]
[EventCountry "GER"]
[SourceTitle "playchess.com"]
[Source "ChessBase"]
[SourceQuality "1"]
[TimeControl "40/5400+30:1800+30"]

1. e4 {[%emt 0:00:03]} c5 {[%emt 0:10:18]} 2. Nf3 {[%emt 0:00:09]} e6 {[%emt 0:00:41]} 3. d4 {[%emt 0:00:59]} cxd4 {[%emt 0:00:16]} 4. Nxd4 {[%emt 0:00:04]} a6 {[%emt 0:00:18]} 5. c4 {[%emt 0:00:24]} Nf6 {[%emt 0:01:02]} 6. Nc3 {[%emt 0:00:30]} Qc7 {[%emt 0:00:15]} 7. a3 {[%emt 0:00:31]} b6 {[%emt 0:00:16]} 8. f4 {[%emt 0:05:07]} d6 {[%emt 0:03:47]} 9. Bd3 {[%emt 0:01:55]} g6 {[%emt 0:03:44]} 10. O-O {[%emt 0:08:50]} Bg7 {[%emt 0:01:00]} 11. Be3 {[%emt 0:03:38]} O-O {[%emt 0:00:37]} 12. Rc1 {[%emt 0:02:49]} Bb7 {[%emt 0:02:03]} 13. b4 {[%emt 0:02:03]} Nbd7 {[%emt 0:01:14]} 14. Nb3 {[%emt 0:21:29]} Rac8 {[%emt 0:06:28]} 15. a4 {[%emt 0:06:13]} Rfd8 {[%emt 0:08:58]} 16. a5 {[%emt 0:02:41]} bxa5 {[%emt 0:00:30]} 17. Nxa5 {[%emt 0:00:23]} Ba8 {[%emt 0:00:18]} 18. Kh1 {[%emt 0:09:45]} Rb8 {[%emt 0:07:18]} 19. Qa4 {[%emt 0:00:22]} Nb6 {[%emt 0:02:15]} 20. Qa3 {[%emt 0:02:10]} Ng4 {[%emt 0:06:03]} 21. Bg1 {[%emt 0:00:52]} f5 {[%emt 0:00:21]} 22. Be2 {[%emt 0:05:16]} Nf6 {[%emt 0:03:56]} 23. c5 {[%emt 0:04:03]} dxc5 {[%emt 0:01:16]} 24. bxc5 {[%emt 0:00:07]} Nc8 {[%emt 0:01:22]} 25. e5 {[%emt 0:07:21]} Nd5 {[%emt 0:01:58]} 26. Bxa6 {[%emt 0:02:23]} Nxc3 {[%emt 0:03:16]} 27. Qxc3 {[%emt 0:00:18]} Bd5 {[%emt 0:00:17]} 28. Bc4 {[%emt 0:06:26]} Ne7 {[%emt 0:00:44]} 29. c6 {[%emt 0:03:38]} g5 {[%emt 0:05:59]} 30. Bc5 {[%emt 0:03:30]} Nxc6 {[%emt 0:02:00]} 31. Bxd5 {[%emt 0:00:09]} Rxd5 {[%emt 0:00:12]} 32. Bd6 {[%emt 0:00:53]} Qxa5 {[%emt 0:00:15]} 33. Qxc6 {[%emt 0:00:05]} Ra8 {[%emt 0:04:33]} 34. Qd7 {[%emt 0:00:18]} Rxd6 {[%emt 0:08:29]} 35. exd6 {[%emt 0:00:05]} gxf4 {[%emt 0:01:12]} 36. Qxe6+ {[%emt 0:01:02]} Kf8 {[%emt 0:00:09]} 37. Rc8+ {[%emt 0:00:06]} Rxc8 {[%emt 0:00:04]} 38. Qxc8+ {[%emt 0:00:04]} Kf7 {[%emt 0:00:05]} 39. Qc7+ {[%emt 0:03:19]} 1-0

[Event "2nd Bundesliga Nord 2024-25"]
[Site "Germany"]
[Date "2025.02.22"]
[Round "8.1"]
[White "Wegerle, Joerg"]
[Black "Nyback, Tomi"]
[Result "1/2-1/2"]
[Annotator "TA"]
[ECO "D02"]
[WhiteElo "2418"]
[BlackElo "2589"]
[PlyCount "130"]
[EventDate "2024.11.29"]
[EventType "team-tourn"]
[EventCountry "GER"]
[SourceTitle "playchess.com"]
[Source "ChessBase"]
[SourceQuality "1"]
[WhiteTeam "Solingen II"]
[BlackTeam "Werder Bremen II"]
[TimeControl "40/5400+30:1800+30"]

{[%evp 9,130,4,4,4,10,0,6,0,1,-5,0,-4,0,0,0,0,0,0,0,-7,0,0,0,-10,0,-25,-19,0,0,-14,0,0,4,21,31,19,15,0,0,0,0,0,8,0,0,0,0,0,0,0,0,0,0,0,0,0,0,0,0,0,0,0,0,0,0,0,0,0,0,0,0,0,0,0,0,0,0,-25,0,-8,-17,-33,-12,-33,-32,-33,-33,-24,-30,-81,-35,-19,-70,-141,-111,-85,-125,-125,-125,-125,-125,-125,-125,-106,-106,-106,-106,-106,-106,-95,-66,-68,0,0,0,0,0,0,0,0,0,0,0]} 1. d4 {[%emt 0:00:03]} d5 {[%emt 0:00:09]} 2. Nf3 {[%emt 0:00:15]} Nf6 {[%emt 0:00:06]} 3. c3 {[%emt 0:01:08]} e6 {[%emt 0:00:33]} 4. Bf4 {[%emt 0:00:38]} Bd6 {[%emt 0:00:13]} 5. e3 {[%emt 0:01:18]} Bxf4 {[%emt 0:02:36]} 6. exf4 {[%emt 0:01:09] D02: 1 d4 d5 2 Nf3 sidelines, including 2...Nf6 3 g3 and 2...Nf6 3 Bf4.} O-O {[%emt 0:00:07]} 7. Nbd2 $1 {[%emt 0:01:49][%mdl 4] is currently scoring better than 7.Bd3.} b6 {[%emt 0:00:12]} 8. Bd3 {[%emt 0:01:55]} Ba6 {[%emt 0:06:40]} 9. Bxa6 {[%emt 0:04:39]} Nxa6 {[%emt 0:02:02]} 10. Qe2 {[%emt 0:03:22]} Nb8 {[%emt 0:03:43] Not much happening anymore} 11. O-O {[%emt 0:02:13]} c5 {[%emt 0:06:27]} 12. Ne5 {[%emt 0:02:52]} Nfd7 $146 {[%emt 0:06:35]} (12... Qd6 13. Ndf3 Ne4 14. Rfd1 f6 15. dxc5 Nxc5 16. b4 Na4 17. Nc4 Qc6 18. Ne3 Nxc3 {0-1 Artemiev,V (2716)-Dominguez Perez,L (2758) Pepe Cuenca Invitational 2020 (1.4)}) 13. Ndf3 {[%emt 0:03:59]} Nxe5 {[%emt 0:06:12]} 14. Nxe5 {[%emt 0:01:07]} Nd7 {[%emt 0:02:04]} 15. Rad1 {[%emt 0:07:10]} Rc8 {[%emt 0:09:00]} 16. Rfe1 {[%emt 0:02:27]} g6 {[%emt 0:05:19]} 17. Qf3 {[%emt 0:11:23]} b5 {[%emt 0:15:51]} 18. Nxd7 {[%emt 0:22:45]} Qxd7 {[%emt 0:01:12]} 19. h4 {[%emt 0:00:11]} Qd8 {[%emt 0:08:41]} 20. h5 {[%emt 0:07:05]} Qh4 {[%emt 0:02:39]} 21. Re5 {[%emt 0:04:11]} cxd4 {[%emt 0:05:15]} 22. Rxd4 {[%emt 0:01:31]} Rc4 {[%emt 0:00:17]} 23. g3 {[%emt 0:03:39]} Qd8 {[%emt 0:04:05]} 24. Qe3 {[%emt 0:01:53]} Rxd4 {[%emt 0:01:58]} 25. Qxd4 {[%emt 0:00:45] Black must now prevent h6.} ({Don't take} 25. cxd4 Qf6 $14) 25... Qb6 $1 {[%emt 0:00:21]} 26. Qxb6 {[%emt 0:05:27]} axb6 $11 {[%emt 0:00:06][%mdl 4096] Endgame KR-KR} 27. a3 {[%emt 0:02:52]} Rc8 {[%emt 0:00:41]} 28. Kf1 {[%emt 0:02:24]} Kf8 {[%emt 0:02:26]} 29. Ke2 {[%emt 0:01:06]} Ke7 {[%emt 0:00:07]} 30. hxg6 {[%emt 0:01:17]} hxg6 {[%emt 0:00:06]} 31. Kd3 {[%emt 0:00:23]} Rh8 {[%emt 0:00:59]} 32. Re1 {[%emt 0:00:52]} Kd6 {[%emt 0:01:02]} 33. Ke3 {[%emt 0:01:29]} f6 {[%emt 0:02:13]} 34. Kf3 {[%emt 0:00:15]} Rh2 {[%emt 0:00:55]} 35. Ra1 {[%emt 0:00:23]} Rh8 {[%emt 0:00:41]} 36. Rd1 {[%emt 0:00:14]} e5 {[%emt 0:00:39]} 37. fxe5+ {[%emt 0:01:06]} fxe5 {[%emt 0:00:07]} 38. Kg4 {[%emt 0:00:19]} Rh2 {[%emt 0:01:43]} 39. Rd2 {[%emt 0:00:25]} Rh5 {[%emt 0:03:04]} 40. Kf3 {[%emt 0:00:52]} Rh1 {[%emt 0:01:33]} 41. Kg4 {[%emt 0:03:14]} Rh5 {[%emt 0:02:47]} 42. Kf3 {[%emt 0:01:42]} Kc5 {[%emt 0:01:12]} 43. Rd1 {[%emt 0:02:55]} Rh8 {[%emt 0:09:49]} 44. Ke3 {[%emt 0:03:39]} g5 {[%emt 0:01:35]} 45. Kd3 {[%emt 0:06:04]} g4 {[%emt 0:03:09]} 46. Re1 {[%emt 0:02:36]} Rh5 {[%emt 0:02:19]} 47. Ra1 {[%emt 0:02:29]} Rf5 {[%emt 0:02:18]} 48. Ke2 {[%emt 0:01:04]} Kc4 {[%emt 0:05:25] Hoping for ...d4.} 49. Rh1 $1 {[%emt 0:05:23]} d4 {[%emt 0:03:01]} 50. cxd4 {[%emt 0:04:57]} exd4 {[%emt 0:00:13]} 51. Rh6 {[%emt 0:00:17]} (51. Rh4 $1 $15) 51... d3+ $17 {[%emt 0:01:43]} 52. Ke1 {[%emt 0:00:20][%cal Oh6d6]} Re5+ $1 {[%emt 0:01:18]} 53. Kd1 {[%emt 0:00:52] [#]} Re2 $1 {[%emt 0:01:07]} 54. Rc6+ {[%emt 0:00:42] [#]} Kd5 $1 {[%emt 0:00:40]} 55. Rxb6 {[%emt 0:00:14]} Rxb2 {[%emt 0:00:06]} ({Reject} 55... Rxf2 $6 56. Rxb5+ Ke4 57. a4 $11) 56. Rg6 {[%emt 0:00:38]} Kd4 {[%emt 0:00:42]} 57. Rd6+ {[%emt 0:00:49]} Kc3 {[%emt 0:01:17][%cal Rb2b1]} 58. Rc6+ {[%emt 0:00:13]} Kb3 {[%emt 0:00:21]} 59. Rd6 {[%emt 0:00:25]} Kxa3 {[%emt 0:01:04]} 60. Rxd3+ {[%emt 0:00:07]} Ka4 {[%emt 0:00:46]} (60... Kb4 $1 $15) 61. f3 $11 {[%emt 0:02:03] The position is equal.} gxf3 {[%emt 0:00:39]} 62. Rxf3 {[%emt 0:00:10]} b4 {[%emt 0:00:06]} 63. Kc1 {[%emt 0:00:20]} Rg2 {[%emt 0:00:05]} 64. Kb1 {[%emt 0:00:17]} b3 {[%emt 0:00:08]} 65. Rf8 {[%emt 0:00:09]} Rxg3 {[%emt 0:00:37] Weighted Error Value: White=0.05 (flawless) /Black=0.04 (flawless)   Mistake:       	White=1     	Black=1      Inaccurate:     	---       	Black=1      OK:         	White=20    	Black=27     Best:        	White=7     	Black=4      Strong:       	White=1     	Black=4} 1/2-1/2

[Event "2nd Bundesliga Nord 2024-25"]
[Site "Germany"]
[Date "2025.02.22"]
[Round "8.2"]
[White "Colbow, Collin"]
[Black "Gaponenko, Inna"]
[Result "1/2-1/2"]
[Annotator "TA"]
[ECO "B33"]
[WhiteElo "2442"]
[BlackElo "2341"]
[PlyCount "45"]
[EventDate "2024.11.29"]
[EventType "team-tourn"]
[EventCountry "GER"]
[SourceTitle "playchess.com"]
[Source "ChessBase"]
[SourceQuality "1"]
[WhiteTeam "Werder Bremen II"]
[BlackTeam "Solingen II"]
[TimeControl "40/5400+30:1800+30"]

{[%evp 20,45,33,31,22,0,0,0,0,0,0,0,0,-77,0,0,0,0,0,0,0,0,0,0,0,0,0,0]} 1. e4 {[%emt 0:00:28]} c5 {[%emt 0:00:06]} 2. Nf3 {[%emt 0:00:11][%cal Bg1f3,Bf3d4,Bd4b5][%mdl 32]} Nc6 {[%emt 0:00:10]} 3. d4 {[%emt 0:00:05]} cxd4 {[%emt 0:00:08]} 4. Nxd4 {[%emt 0:00:09]} Nf6 {[%emt 0:03:09]} 5. Nc3 {[%emt 0:00:06]} e5 {[%emt 0:05:19]} 6. Ndb5 {[%emt 0:00:26]} d6 {[%emt 0:00:07]} 7. Nd5 {[%emt 0:00:40]} Nxd5 {[%emt 0:00:11]} 8. exd5 {[%emt 0:00:08]} Ne7 {[%emt 0:00:12]} 9. c4 {[%emt 0:01:00]} Ng6 {[%emt 0:00:12]} 10. Qa4 {[%emt 0:11:27]} Bd7 {[%emt 0:00:11]} 11. Qb4 {[%emt 0:00:15]} Bf5 {[%emt 0:00:47] B33: Sicilian: Pelikan and Sveshnikov Variations.} 12. Bg5 {[%emt 0:17:04]} Qxg5 $146 {[%emt 0:51:48]} (12... f6 13. Be3 a6 14. Nc3 Qd7 15. h3 h5 16. Be2 Nh4 17. Rg1 Be7 18. g3 a5 19. Qb5 {1-0 Potemri,S (1457)-Jenneborg,S (1685) LSS No Engine Cup 27 Preliminary 7 2010}) 13. Nc7+ {[%emt 0:00:33]} Kd8 $1 {[%emt 0:00:06]} 14. Nxa8 {[%emt 0:01:26]} Qf4 {[%emt 0:00:19] [#]} 15. Be2 {[%emt 0:33:18]} Qe4 {[%emt 0:00:22]} 16. O-O {[%emt 0:01:51]} (16. Qxb7 Nf4 17. Kf1 Qxg2+ (17... Qxe2+ $2 18. Kg1 $19) (17... Nxe2 18. Qc7+ Ke8 19. Re1 $17) 18. Ke1 Qe4 (18... Qxh1+ $2 19. Kd2 $19) 19. Qb8+ Ke7 20. Qxa7+ Kf6 $19) (16. f3 $1 $11 Qe3 17. Qa5+ (17. Qxb7 $2 Nf4 $19) 17... Ke7 18. g3) 16... Nh4 {[%emt 0:01:44]} ({Black should try} 16... Qxe2 $17 17. Rfe1 (17. Qxb7 Nf4 $17) 17... Qg4) 17. f3 $1 $11 {[%emt 0:01:50] The position is equal.} (17. Qa5+ $2 b6 18. Bf3 Qxf3 $19 (18... bxa5 $2 19. Bxe4 Bxe4 20. f3 $19) (18... Nxf3+ $2 19. gxf3 Qxf3 20. Qc3 $19)) 17... Qxe2 {[%emt 0:04:30][%csl Gh4][%cal Re2g2]} 18. Rf2 {[%emt 0:00:06] Some like it hot} Qe3 {[%emt 0:00:07] [#]} 19. Qxb7 {[%emt 0:08:59][%cal Ob2b4]} Be7 {[%emt 0:10:37][%cal Oh4f3]} 20. Qb8+ {[%emt 0:02:40]} Kd7 {[%emt 0:00:05]} 21. Qb7+ {[%emt 0:07:50]} (21. Qxh8 $2 {loses.} Nxf3+ 22. Kh1 (22. gxf3 Bh4 $19) 22... Qxf2 $19) 21... Kd8 {[%emt 0:00:17][%cal Oh4f3] ...Nxf3+! would now be deadly.} 22. Qb8+ {[%emt 0:02:37]} Kd7 {[%emt 0:00:05]} 23. Qb7+ {[%emt 0:00:35] Not much happened in this game.   Weighted Error Value: White=0.10 (very precise) /Black=0.08 (flawless)   Mistake:       	White=1     	Black=1      OK:         	White=5     	Black=7      Best:        	White=1     	Black=2      Strong:       	White=1     	Black=1} ({Much weaker is} 23. Qxh8 Nxf3+ 24. Kh1 (24. gxf3 Bh4 $19) 24... Qxf2 $17) 1/2-1/2

[Event "2nd Bundesliga Nord 2024-25"]
[Site "Germany"]
[Date "2025.02.22"]
[Round "8.3"]
[White "Schlecht, Daniel"]
[Black "Baklan, Vladimir"]
[Result "0-1"]
[Annotator "TA"]
[ECO "E91"]
[WhiteElo "2372"]
[BlackElo "2553"]
[PlyCount "46"]
[EventDate "2024.11.29"]
[EventType "team-tourn"]
[EventCountry "GER"]
[SourceTitle "playchess.com"]
[Source "ChessBase"]
[SourceQuality "1"]
[WhiteTeam "Solingen II"]
[BlackTeam "Werder Bremen II"]
[TimeControl "40/5400+30:1800+30"]

{[%evp 14,46,57,40,56,59,72,-44,52,37,50,23,12,6,31,43,40,2,17,0,10,0,12,-4,-12,-23,-27,-39,-27,-31,-9,-22,-19,-298,-307]} 1. d4 {[%emt 0:00:03]} Nf6 {[%emt 0:00:04]} 2. c4 {[%emt 0:00:05]} g6 {[%emt 0:00:15]} 3. Nc3 {[%emt 0:00:06]} Bg7 {[%emt 0:00:03]} 4. e4 {[%emt 0:00:18]} d6 {[%emt 0:00:03]} 5. Nf3 {[%emt 0:00:15]} O-O {[%emt 0:00:09]} 6. Be2 {[%emt 0:00:08]} Na6 {[%emt 0:00:37]} 7. Be3 {[%emt 0:01:43]} c5 {[%emt 0:15:32]} 8. O-O {[%emt 0:09:09] was the old line (8.d5).} Ng4 {[%emt 0:12:03] E91: King's Indian: Classical: 6 Be2, unusual replies including 6...c5 and 6...Bg4.} 9. Bg5 {[%emt 0:01:05]} h6 {[%emt 0:00:04] [#] ...cxd4 is the strong threat.} 10. Bh4 {[%emt 0:00:47]} ({Better is} 10. Bc1 $1 $16) 10... g5 $5 {[%emt 0:00:12][%mdl 4] Leaves trodden paths.} (10... cxd4 $15 11. Nxd4 Bxd4 12. Bxg4 (12. Qxd4 $2 {perishes.} e5 $17) 12... Bxc3 13. bxc3 Nc5) 11. Bg3 $14 {[%emt 0:00:19]} Nf6 {[%emt 0:00:21]} 12. dxc5 {[%emt 0:19:52]} Nxc5 {[%emt 0:05:32]} 13. Nd2 {[%emt 0:00:47]} Bd7 $146 {[%emt 0:01:15]} (13... a5 14. Rc1 e5 15. Re1 h5 16. f3 Bh6 17. Nf1 Ne6 18. Rc2 Nd4 19. Rd2 g4 20. Rxd4 exd4 21. Qxd4 {0-1 Horvath,C (2537)-Naiditsch,A (2710) HUN-chT 1415 2014 (5.5)}) 14. Re1 {[%emt 0:10:05]} Bc6 {[%emt 0:03:02][%cal Rf6e4]} 15. Bf1 {[%emt 0:00:32]} a5 {[%emt 0:00:19]} 16. Rb1 {[%emt 0:05:38]} e6 {[%emt 0:07:20]} 17. Kh1 {[%emt 0:04:27]} d5 {[%emt 0:09:10]} 18. cxd5 {[%emt 0:16:17]} exd5 {[%emt 0:00:08]} 19. exd5 {[%emt 0:01:35]} Nxd5 {[%emt 0:00:34]} 20. Nxd5 {[%emt 0:02:23]} Qxd5 {[%emt 0:05:48]} 21. Nc4 {[%emt 0:01:43]} Qxd1 {[%emt 0:08:30]} 22. Rbxd1 {[%emt 0:00:59] [#] Threatens to win with Bd6.} Ne4 {[%emt 0:00:16]} 23. Ne5 $2 {[%emt 0:02:43][%mdl 8192]} (23. b3 $11 {and White is okay.}) 23... Bxe5 {[%emt 0:01:19] Weighted Error Value: White=0.54/Black=0.23 (precise)   Loses game:     	White=1     	---        Mistake:       	White=1     	Black=1      Inaccurate:     	White=2     	---        OK:         	White=3     	Black=2      Best:        	White=1     	Black=2} 0-1